Workbook

Sheet First trim
A1: Serial Number : | N1: First trim
B3: A | H3: B | N3: C | T3: D | Z3: E | AF3: BRAKES
B4: factory | C4: LEFT | D4: RIGHT | E4: left | F4: right | G4: symet | H4: factory | I4: LEFT | J4: RIGHT | K4: left | L4: right | M4: symet | N4: factory | O4: LEFT | P4: RIGHT | Q4: left | R4: right | S4: symet | T4: factory | U4: LEFT | V4: RIGHT | W4: left | X4: right | Y4: symet | Z4: factory | AA4: LEFT | AB4: RIGHT | AC4: left | AD4: right | AE4: symet | AF4: factory | AG4: LEFT | AH4: RIGHT | AI4: left | AJ4: right | AK4: symet | AN4: A | AO4: B | AP4: C | AQ4: D | AR4: E | AS4: Brake
A5: 1 | B5: =AN5+$AB$25 -> 8693.4 | E5: =C5-B5 -> -8693.4 | F5: =D5-B5 -> -8693.4 | G5: =C5-D5 -> 0 | H5: =AO5+$AB$25 -> 8595.4 | K5: =I5-H5 -> -8595.4 | L5: =J5-H5 -> -8595.4 | M5: =I5-J5 -> 0 | N5: =AP5+$AB$25 -> 8618.5 | Q5: =O5-N5 -> -8618.5 | R5: =P5-N5 -> -8618.5 | S5: =O5-P5 -> 0 | T5: =AQ5+$AB$25 -> 8800.3 | W5: =U5-T5 -> -8800.3 | X5: =V5-T5 -> -8800.3 | Y5: =U5-V5 -> 0 | Z5: =AR5+$AB$25 -> 8919.7 | AC5: =AA5-Z5 -> -8919.7 | AD5: =AB5-Z5 -> -8919.7 | AE5: =AA5-AB5 -> 0 | AF5: =AS5+$AB$26 -> 9375.9 | AI5: =(AG5-AF5)+$AB$26 -> -9375.9 | AJ5: =(AH5-AF5)+$AB$26 -> -9375.9 | AK5: =AG5-AH5 -> 0 | AM5: 1 | AN5: 8693.4 | AO5: 8595.4 | AP5: 8618.5 | AQ5: 8800.3 | AR5: 8919.7 | AS5: 9375.9
A6: 2 | B6: 8611.7 | E6: =C6-B6 -> -8611.7 | F6: =D6-B6 -> -8611.7 | G6: =C6-D6 -> 0 | H6: 8517.1 | K6: =I6-H6 -> -8517.1 | L6: =J6-H6 -> -8517.1 | M6: =I6-J6 -> 0 | N6: 8540.6 | Q6: =O6-N6 -> -8540.6 | R6: =P6-N6 -> -8540.6 | S6: =O6-P6 -> 0 | T6: 8711.9 | W6: =U6-T6 -> -8711.9 | X6: =V6-T6 -> -8711.9 | Y6: =U6-V6 -> 0 | Z6: 8792.3 | AC6: =AA6-Z6 -> -8792.3 | AD6: =AB6-Z6 -> -8792.3 | AE6: =AA6-AB6 -> 0 | AF6: =AS6+$AB$26 -> 9084.9 | AI6: -9084.9 | AJ6: -9084.9 | AK6: =AG6-AH6 -> 0 | AM6: 2 | AN6: 8611.7 | AO6: 8517.1 | AP6: 8540.6 | AQ6: 8711.9 | AR6: 8792.3 | AS6: 9084.9
A7: 3 | B7: 8592.2 | E7: -8592.2 | F7: -8592.2 | G7: 0 | H7: 8495.8 | K7: -8495.8 | L7: -8495.8 | M7: 0 | N7: 8517.6 | Q7: -8517.6 | R7: -8517.6 | S7: 0 | T7: 8672.2 | W7: -8672.2 | X7: -8672.2 | Y7: 0 | Z7: 8755.4 | AC7: -8755.4 | AD7: -8755.4 | AE7: 0 | AF7: =AS7+$AB$26 -> 8909.2 | AI7: -8909.2 | AJ7: -8909.2 | AK7: 0 | AM7: 3 | AN7: 8592.2 | AO7: 8495.8 | AP7: 8517.6 | AQ7: 8672.2 | AR7: 8755.4 | AS7: 8909.2
A8: 4 | B8: 8573.5 | E8: =C8-B8 -> -8573.5 | F8: =D8-B8 -> -8573.5 | G8: =C8-D8 -> 0 | H8: 8476.2 | K8: =I8-H8 -> -8476.2 | L8: =J8-H8 -> -8476.2 | M8: =I8-J8 -> 0 | N8: 8504.8 | Q8: =O8-N8 -> -8504.8 | R8: =P8-N8 -> -8504.8 | S8: =O8-P8 -> 0 | T8: 8631.7 | W8: =U8-T8 -> -8631.7 | X8: =V8-T8 -> -8631.7 | Y8: =U8-V8 -> 0 | Z8: 8774.7 | AC8: -8774.7 | AD8: -8774.7 | AE8: 0 | AF8: 8945.3 | AI8: -8945.3 | AJ8: -8945.3 | AK8: =AG8-AH8 -> 0 | AM8: 4 | AN8: 8573.5 | AO8: 8476.2 | AP8: 8504.8 | AQ8: 8631.7 | AR8: 8774.7 | AS8: 8945.3
A9: 5 | B9: 8574.6 | E9: -8574.6 | F9: -8574.6 | G9: 0 | H9: 8476 | K9: -8476 | L9: -8476 | M9: 0 | N9: 8509.1 | Q9: -8509.1 | R9: -8509.1 | S9: 0 | T9: 8633.7 | W9: -8633.7 | X9: -8633.7 | Y9: 0 | Z9: 8759.1 | AC9: -8759.1 | AD9: -8759.1 | AE9: 0 | AF9: 8746.7 | AI9: -8746.7 | AJ9: -8746.7 | AK9: 0 | AM9: 5 | AN9: 8574.6 | AO9: 8476 | AP9: 8509.1 | AQ9: 8633.7 | AR9: 8759.1 | AS9: 8746.7
A10: 6 | B10: 8620.9 | E10: -8620.9 | F10: -8620.9 | G10: 0 | H10: 8527 | K10: -8527 | L10: -8527 | M10: 0 | N10: 8562.9 | Q10: -8562.9 | R10: -8562.9 | S10: 0 | T10: 8663.5 | W10: -8663.5 | X10: -8663.5 | Y10: 0 | Z10: 8720.2 | AC10: -8720.2 | AD10: -8720.2 | AE10: 0 | AF10: 8554 | AI10: -8554 | AJ10: -8554 | AK10: 0 | AM10: 6 | AN10: 8620.9 | AO10: 8527 | AP10: 8562.9 | AQ10: 8663.5 | AR10: 8720.2 | AS10: 8554
A11: 7 | B11: 8542.7 | E11: -8542.7 | F11: -8542.7 | G11: 0 | H11: 8461.8 | K11: -8461.8 | L11: -8461.8 | M11: 0 | N11: 8507.6 | Q11: -8507.6 | R11: -8507.6 | S11: 0 | T11: 8636.8 | W11: -8636.8 | X11: -8636.8 | Y11: 0 | Z11: 8674.6 | AC11: -8674.6 | AD11: -8674.6 | AE11: 0 | AF11: 8494.2 | AI11: -8494.2 | AJ11: -8494.2 | AK11: 0 | AM11: 7 | AN11: 8542.7 | AO11: 8461.8 | AP11: 8507.6 | AQ11: 8636.8 | AR11: 8674.6 | AS11: 8494.2
A12: 8 | B12: 8499.2 | E12: -8499.2 | F12: -8499.2 | G12: 0 | H12: 8427 | K12: -8427 | L12: -8427 | M12: 0 | N12: 8472.5 | Q12: -8472.5 | R12: -8472.5 | S12: 0 | T12: 8591.4 | W12: =U12-T12 -> -8591.4 | X12: =V12-T12 -> -8591.4 | Y12: =U12-V12 -> 0 | Z12: 8670.5 | AC12: -8670.5 | AD12: -8670.5 | AE12: 0 | AF12: 8559.2 | AI12: -8559.2 | AJ12: -8559.2 | AK12: 0 | AM12: 8 | AN12: 8499.2 | AO12: 8427 | AP12: 8472.5 | AQ12: 8591.4 | AR12: 8670.5 | AS12: 8559.2
A13: 9 | B13: 8453.7 | E13: -8453.7 | F13: -8453.7 | G13: 0 | H13: 8568.6 | K13: -8568.6 | L13: =J13-H13 -> -8568.6 | M13: =I13-J13 -> 0 | N13: 8445.2 | Q13: -8445.2 | R13: =P13-N13 -> -8445.2 | S13: =O13-P13 -> 0 | T13: 8561 | W13: -8561 | X13: -8561 | Y13: 0 | AF13: 8346.8 | AI13: -8346.8 | AJ13: -8346.8 | AK13: 0 | AM13: 9 | AN13: 8453.7 | AO13: 8568.6 | AP13: 8445.2 | AQ13: 8561 | AS13: 8346.8
A14: 10 | B14: 8455.9 | E14: -8455.9 | F14: -8455.9 | G14: 0 | H14: 8395.8 | K14: -8395.8 | L14: =J14-H14 -> -8395.8 | M14: =I14-J14 -> 0 | N14: 8455.2 | Q14: -8455.2 | R14: =P14-N14 -> -8455.2 | S14: =O14-P14 -> 0 | T14: 8570.4 | W14: -8570.4 | X14: -8570.4 | Y14: 0 | AF14: 8247.8 | AI14: -8247.8 | AJ14: -8247.8 | AK14: 0 | AM14: 10 | AN14: 8455.9 | AO14: 8395.8 | AP14: 8455.2 | AQ14: 8570.4 | AS14: 8247.8
A15: 11 | B15: 8300 | E15: -8300 | F15: -8300 | G15: 0 | H15: 8252.3 | K15: -8252.3 | L15: -8252.3 | M15: 0 | N15: 8285.6 | Q15: -8285.6 | R15: =P15-N15 -> -8285.6 | S15: =O15-P15 -> 0 | T15: 8422.6 | W15: -8422.6 | X15: -8422.6 | Y15: 0 | AF15: 8143.8 | AI15: -8143.8 | AJ15: -8143.8 | AK15: 0 | AM15: 11 | AN15: 8300 | AO15: 8252.3 | AP15: 8285.6 | AQ15: 8422.6 | AS15: 8143.8
A16: 12 | B16: 8212.5 | E16: -8212.5 | F16: -8212.5 | G16: 0 | H16: 8176 | K16: -8176 | L16: -8176 | M16: 0 | N16: 8211.4 | Q16: -8211.4 | R16: -8211.4 | S16: 0 | T16: 8288.5 | W16: -8288.5 | X16: -8288.5 | Y16: 0 | AF16: 8074.4 | AI16: -8074.4 | AJ16: -8074.4 | AK16: 0 | AM16: 12 | AN16: 8212.5 | AO16: 8176 | AP16: 8211.4 | AQ16: 8288.5 | AS16: 8074.4
A17: 13 | B17: 8160.6 | E17: -8160.6 | F17: -8160.6 | G17: 0 | H17: 8127.7 | K17: -8127.7 | L17: -8127.7 | M17: 0 | N17: 8164.1 | Q17: -8164.1 | R17: -8164.1 | S17: 0 | T17: 8166.5 | W17: -8166.5 | X17: -8166.5 | Y17: 0 | AF17: 8063.6 | AI17: -8063.6 | AJ17: -8063.6 | AK17: 0 | AM17: 13 | AN17: 8160.6 | AO17: 8127.7 | AP17: 8164.1 | AQ17: 8166.5 | AS17: 8063.6
A18: 14 | B18: 8044.4 | E18: =C18-B18 -> -8044.4 | F18: =D18-B18 -> -8044.4 | G18: =C18-D18 -> 0 | H18: 8009.8 | K18: =I18-H18 -> -8009.8 | L18: =J18-H18 -> -8009.8 | M18: =I18-J18 -> 0 | N18: 8059.2 | Q18: =O18-N18 -> -8059.2 | R18: =P18-N18 -> -8059.2 | S18: =O18-P18 -> 0 | T18: 8062.8 | W18: -8062.8 | X18: -8062.8 | Y18: 0 | AM18: 14 | AN18: 8044.4 | AO18: 8009.8 | AP18: 8059.2 | AQ18: 8062.8
A19: 15 | B19: 7993 | E19: -7993 | F19: -7993 | G19: 0 | H19: 7944.7 | K19: -7944.7 | L19: -7944.7 | M19: 0 | N19: 7989.1 | Q19: -7989.1 | R19: -7989.1 | S19: 0 | AM19: 15 | AN19: 7993 | AO19: 7944.7 | AP19: 7989.1
A20: 16 | B20: 7969.5 | E20: -7969.5 | F20: -7969.5 | G20: 0 | H20: 7899.4 | K20: -7899.4 | L20: -7899.4 | M20: 0 | N20: 7950.4 | Q20: -7950.4 | R20: -7950.4 | S20: 0 | AM20: 16 | AN20: 7969.5 | AO20: 7899.4 | AP20: 7950.4
A21: 17 | B21: 7757.8 | E21: -7757.8 | F21: -7757.8 | G21: 0 | H21: 7742.4 | K21: -7742.4 | L21: -7742.4 | M21: 0 | N21: 7836.8 | Q21: -7836.8 | R21: -7836.8 | S21: 0 | AM21: 17 | AN21: 7757.8 | AO21: 7742.4 | AP21: 7836.8
A22: 18 | B22: 7653.9 | E22: -7653.9 | F22: -7653.9 | G22: 0 | H22: 7701.6 | K22: -7701.6 | L22: -7701.6 | M22: 0 | N22: 7797.9 | Q22: -7797.9 | R22: -7797.9 | S22: 0 | AM22: 18 | AN22: 7653.9 | AO22: 7701.6 | AP22: 7797.9
W24: AS+ | X24: 30 | Y24: OFFSET
W25: AS | X25: 22 | Y25: Risers
W26: DL | X26: 15 | Y26: Brake
W27: L | X27: 0

Sheet Second trim
N1: Second trim
B3: A | H3: B | N3: C | T3: D | Z3: BRAKES
B4: factory | C4: LEFT | D4: RIGHT | E4: left | F4: right | G4: symet | H4: factory | I4: LEFT | J4: RIGHT | K4: left | L4: right | M4: symet | N4: factory | O4: LEFT | P4: RIGHT | Q4: left | R4: right | S4: symet | T4: factory | U4: LEFT | V4: RIGHT | W4: left | X4: right | Y4: symet | Z4: factory | AA4: LEFT | AB4: RIGHT | AC4: left | AD4: right | AE4: symet | AH4: A | AI4: B | AJ4: C | AK4: D | AL4: Brake
A5: 1 | B5: =AH5+$AA$22 -> 8693.4 | E5: =C5-B5 -> -8693.4 | F5: =D5-B5 -> -8693.4 | G5: =C5-D5 -> 0 | H5: =AI5+$AA$22 -> 8595.4 | K5: =I5-H5 -> -8595.4 | L5: =J5-H5 -> -8595.4 | M5: =I5-J5 -> 0 | N5: =AJ5+$AA$22 -> 8618.5 | Q5: =O5-N5 -> -8618.5 | R5: =P5-N5 -> -8618.5 | S5: =O5-P5 -> 0 | T5: =AK5 -> 8800.3 | W5: =U5-T5 -> -8800.3 | X5: =V5-T5 -> -8800.3 | Y5: =U5-V5 -> 0 | Z5: =AL5 -> 9375.9 | AC5: =(AA5-Z5)+$AA$23 -> -9375.9 | AD5: =(AB5-Z5)+$AA$23 -> -9375.9 | AE5: =AA5-AB5 -> 0 | AG5: 1 | AH5: ='First trim'!AN5 -> 8693.4 | AI5: ='First trim'!AO5 -> 8595.4 | AJ5: ='First trim'!AP5 -> 8618.5 | AK5: ='First trim'!AQ5 -> 8800.3 | AL5: ='First trim'!AS5 -> 9375.9
A6: 2 | B6: =AH6+$AA$22 -> 8611.7 | E6: =C6-B6 -> -8611.7 | F6: =D6-B6 -> -8611.7 | G6: =C6-D6 -> 0 | H6: =AI6+$AA$22 -> 8517.1 | K6: =I6-H6 -> -8517.1 | L6: =J6-H6 -> -8517.1 | M6: =I6-J6 -> 0 | N6: =AJ6+$AA$22 -> 8540.6 | Q6: =O6-N6 -> -8540.6 | R6: =P6-N6 -> -8540.6 | S6: =O6-P6 -> 0 | T6: =AK6 -> 8711.9 | W6: =U6-T6 -> -8711.9 | X6: =V6-T6 -> -8711.9 | Y6: =U6-V6 -> 0 | Z6: =AL6 -> 9084.9 | AC6: -9084.9 | AD6: -9084.9 | AE6: =AA6-AB6 -> 0 | AG6: 2 | AH6: ='First trim'!AN6 -> 8611.7 | AI6: ='First trim'!AO6 -> 8517.1 | AJ6: ='First trim'!AP6 -> 8540.6 | AK6: ='First trim'!AQ6 -> 8711.9 | AL6: ='First trim'!AS6 -> 9084.9
A7: 3 | B7: 8592.2 | E7: -8592.2 | F7: -8592.2 | G7: 0 | H7: 8495.8 | K7: -8495.8 | L7: -8495.8 | M7: 0 | N7: 8517.6 | Q7: -8517.6 | R7: -8517.6 | S7: 0 | T7: =AK7 -> 8672.2 | W7: -8672.2 | X7: -8672.2 | Y7: 0 | Z7: =AL7 -> 8909.2 | AC7: -8909.2 | AD7: -8909.2 | AE7: 0 | AG7: 3 | AH7: ='First trim'!AN7 -> 8592.2 | AI7: ='First trim'!AO7 -> 8495.8 | AJ7: ='First trim'!AP7 -> 8517.6 | AK7: ='First trim'!AQ7 -> 8672.2 | AL7: ='First trim'!AS7 -> 8909.2
A8: 4 | B8: 8542.7 | E8: -8542.7 | F8: -8542.7 | G8: 0 | H8: 8461.8 | K8: -8461.8 | L8: -8461.8 | M8: 0 | N8: 8507.6 | Q8: -8507.6 | R8: -8507.6 | S8: 0 | T8: 8636.8 | W8: -8636.8 | X8: -8636.8 | Y8: 0 | Z8: 8494.2 | AC8: -8494.2 | AD8: -8494.2 | AE8: 0 | AG8: 4 | AH8: ='First trim'!AN11 -> 8542.7 | AI8: ='First trim'!AO11 -> 8461.8 | AJ8: ='First trim'!AP11 -> 8507.6 | AK8: ='First trim'!AQ11 -> 8636.8 | AL8: ='First trim'!AS11 -> 8494.2
A9: 5 | B9: 8499.2 | E9: -8499.2 | F9: -8499.2 | G9: 0 | H9: 8427 | K9: -8427 | L9: -8427 | M9: 0 | N9: 8472.5 | Q9: -8472.5 | R9: -8472.5 | S9: 0 | T9: 8591.4 | W9: -8591.4 | X9: -8591.4 | Y9: 0 | Z9: 8559.2 | AC9: -8559.2 | AD9: -8559.2 | AE9: 0 | AG9: 5 | AH9: ='First trim'!AN12 -> 8499.2 | AI9: ='First trim'!AO12 -> 8427 | AJ9: ='First trim'!AP12 -> 8472.5 | AK9: ='First trim'!AQ12 -> 8591.4 | AL9: ='First trim'!AS12 -> 8559.2
A10: 6 | B10: 8453.7 | E10: -8453.7 | F10: -8453.7 | G10: 0 | H10: 8568.6 | K10: -8568.6 | L10: =J10-H10 -> -8568.6 | M10: =I10-J10 -> 0 | N10: 8445.2 | Q10: -8445.2 | R10: =P10-N10 -> -8445.2 | S10: =O10-P10 -> 0 | T10: 8561 | W10: -8561 | X10: -8561 | Y10: 0 | Z10: 8346.8 | AC10: -8346.8 | AD10: -8346.8 | AE10: 0 | AG10: 6 | AH10: ='First trim'!AN13 -> 8453.7 | AI10: ='First trim'!AO13 -> 8568.6 | AJ10: ='First trim'!AP13 -> 8445.2 | AK10: ='First trim'!AQ13 -> 8561 | AL10: ='First trim'!AS13 -> 8346.8
A11: 7 | B11: 8455.9 | E11: -8455.9 | F11: -8455.9 | G11: 0 | H11: 8395.8 | K11: -8395.8 | L11: =J11-H11 -> -8395.8 | M11: =I11-J11 -> 0 | N11: 8455.2 | Q11: -8455.2 | R11: =P11-N11 -> -8455.2 | S11: =O11-P11 -> 0 | T11: 8570.4 | W11: -8570.4 | X11: -8570.4 | Y11: 0 | Z11: 8247.8 | AC11: -8247.8 | AD11: -8247.8 | AE11: 0 | AG11: 7 | AH11: ='First trim'!AN14 -> 8455.9 | AI11: ='First trim'!AO14 -> 8395.8 | AJ11: ='First trim'!AP14 -> 8455.2 | AK11: ='First trim'!AQ14 -> 8570.4 | AL11: ='First trim'!AS14 -> 8247.8
A12: 8 | B12: 8300 | E12: -8300 | F12: -8300 | G12: 0 | H12: 8252.3 | K12: -8252.3 | L12: -8252.3 | M12: 0 | N12: 8285.6 | Q12: -8285.6 | R12: =P12-N12 -> -8285.6 | S12: =O12-P12 -> 0 | T12: 8422.6 | W12: -8422.6 | X12: -8422.6 | Y12: 0 | Z12: 8143.8 | AC12: -8143.8 | AD12: -8143.8 | AE12: 0 | AG12: 8 | AH12: ='First trim'!AN15 -> 8300 | AI12: ='First trim'!AO15 -> 8252.3 | AJ12: ='First trim'!AP15 -> 8285.6 | AK12: ='First trim'!AQ15 -> 8422.6 | AL12: ='First trim'!AS15 -> 8143.8
A13: 9 | B13: 8212.5 | E13: -8212.5 | F13: -8212.5 | G13: 0 | H13: 8176 | K13: -8176 | L13: -8176 | M13: 0 | N13: 8211.4 | Q13: -8211.4 | R13: -8211.4 | S13: 0 | Z13: 8074.4 | AC13: -8074.4 | AD13: -8074.4 | AE13: 0 | AG13: 9 | AH13: ='First trim'!AN16 -> 8212.5 | AI13: ='First trim'!AO16 -> 8176 | AJ13: ='First trim'!AP16 -> 8211.4 | AL13: ='First trim'!AS16 -> 8074.4
A14: 10 | B14: 8160.6 | E14: -8160.6 | F14: -8160.6 | G14: 0 | H14: 8127.7 | K14: -8127.7 | L14: -8127.7 | M14: 0 | N14: 8164.1 | Q14: -8164.1 | R14: -8164.1 | S14: 0 | Z14: 8063.6 | AC14: -8063.6 | AD14: -8063.6 | AE14: 0 | AG14: 10 | AH14: ='First trim'!AN17 -> 8160.6 | AI14: ='First trim'!AO17 -> 8127.7 | AJ14: ='First trim'!AP17 -> 8164.1 | AL14: ='First trim'!AS17 -> 8063.6
A15: 11 | B15: 8044.4 | E15: -8044.4 | F15: -8044.4 | G15: 0 | H15: 8009.8 | K15: -8009.8 | L15: -8009.8 | M15: 0 | N15: 8059.2 | Q15: -8059.2 | R15: -8059.2 | S15: 0 | Z15: =AL15 -> 0 | AC15: =(AA15-Z15)+$AA$23 -> 0 | AD15: =(AB15-Z15)+$AA$23 -> 0 | AE15: 0 | AG15: 11 | AH15: ='First trim'!AN18 -> 8044.4 | AI15: ='First trim'!AO18 -> 8009.8 | AJ15: ='First trim'!AP18 -> 8059.2 | AL15: ='First trim'!AS18 -> 0
A16: 12 | B16: 7993 | E16: -7993 | F16: -7993 | G16: 0 | H16: 7944.7 | K16: -7944.7 | L16: -7944.7 | M16: 0 | N16: 7989.1 | Q16: -7989.1 | R16: -7989.1 | S16: 0 | AG16: 12 | AH16: ='First trim'!AN19 -> 7993 | AI16: ='First trim'!AO19 -> 7944.7 | AJ16: ='First trim'!AP19 -> 7989.1
A17: 13 | B17: 7969.5 | E17: -7969.5 | F17: -7969.5 | G17: 0 | H17: 7899.4 | K17: -7899.4 | L17: -7899.4 | M17: 0 | N17: 7950.4 | Q17: -7950.4 | R17: -7950.4 | S17: 0 | AG17: 13 | AH17: ='First trim'!AN20 -> 7969.5 | AI17: ='First trim'!AO20 -> 7899.4 | AJ17: ='First trim'!AP20 -> 7950.4
A18: 14 | B18: 7757.8 | E18: -7757.8 | F18: -7757.8 | G18: 0 | H18: 7742.4 | K18: -7742.4 | L18: -7742.4 | M18: 0 | N18: 7836.8 | Q18: -7836.8 | R18: -7836.8 | S18: 0 | AG18: 14 | AH18: ='First trim'!AN21 -> 7757.8 | AI18: ='First trim'!AO21 -> 7742.4 | AJ18: ='First trim'!AP21 -> 7836.8
A19: 15 | B19: 7653.9 | E19: -7653.9 | F19: -7653.9 | G19: 0 | H19: 7701.6 | K19: -7701.6 | L19: -7701.6 | M19: 0 | N19: 7797.9 | Q19: -7797.9 | R19: -7797.9 | S19: 0 | AG19: 15 | AH19: ='First trim'!AN22 -> 7653.9 | AI19: ='First trim'!AO22 -> 7701.6 | AJ19: ='First trim'!AP22 -> 7797.9
W21: AS+ | X21: 30 | Y21: OFFSET
B22: Group average | L22: Setting loops on links | W22: AS | X22: 22 | Y22: Risers
W23: DL | X23: 15 | Y23: Brake
B24: LEFT | G24: RIGHT | L24: LEFT | Q24: RIGHT | W24: L | X24: 0
B25: Stabilo | C25: 3 | D25: 2 | E25: 1 | G25: 1 | H25: 2 | I25: 3 | J25: Stabilo | L25: Stabilo | M25: 3 | N25: 2 | O25: 1 | Q25: 1 | R25: 2 | S25: 3 | T25: Stabilo
C26: =AVERAGE(E13:E17) -> -8076 | D26: =AVERAGE(E9:E12) -> -8427.2 | E26: =AVERAGE(E5:E8) -> -8610 | F26: A | G26: =AVERAGE(F5:F8) -> -8610 | H26: =AVERAGE(F9:F12) -> -8427.2 | I26: =AVERAGE(F13:F17) -> -8076 | M26: DL | N26: DL | O26: DL | P26: A | Q26: DL | R26: DL | S26: DL
B27: =AVERAGE(E18:E19,K18:K19,Q18:Q19) -> -7748.4 | C27: =AVERAGE(K13:K17,Q13:Q17) -> -8053.18 | D27: =AVERAGE(K9:K12) -> -8410.925 | E27: =AVERAGE(K5:K8) -> -8517.525 | F27: B | G27: =AVERAGE(L5:L8) -> -8517.525 | H27: =AVERAGE(L9:L12) -> -8410.925 | I27: =AVERAGE(L13:L17,R13:R17) -> -8053.18 | J27: =AVERAGE(F18:F19,L18:L19,R18:R19) -> -7748.4 | L27: DL | M27: DL | N27: DL | O27: DL | P27: B | Q27: DL | R27: DL | S27: DL | T27: DL
D28: =AVERAGE(Q9:Q12,W9:W12) -> -8475.4875 | E28: =AVERAGE(Q5:Q8,W5:W8) -> -8625.6875 | F28: C | G28: =AVERAGE(R5:R8,X5:X8) -> -8625.6875 | H28: =AVERAGE(R9:R12,X9:X12) -> -8475.4875 | N28: DL | O28: DL | P28: C | Q28: DL | R28: DL
